fUSD/lending_fUSD_20250322
["ID","MTS","AMOUNT","RATE_DAILY","PERIOD"]
[356541166,1742637049258,-500.0,0.00046849,120]
[356541167,1742637049267,-500.0,0.00046849,120]
[356541168,1742637049276,-500.0,0.00046849,120]
[356541169,1742637049286,-500.0,0.00046849,120]
[356541170,1742637049300,-629.6,0.00046849,120]
[356541171,1742637049310,-1219.87,0.00046849,120]
[356541172,1742637049320,-500.0,0.00046849,120]
[356541173,1742637049329,-511.1,0.00046849,120]
[356541174,1742637049339,-500.0,0.00046849,120]
[356541175,1742637049348,-500.0,0.00046849,120]
[356541176,1742637049358,-500.0,0.00046849,120]
[356541177,1742637049369,-500.0,0.00046849,120]
[356541178,1742637049378,-500.0,0.00046849,120]
[356541179,1742637049390,-973.06,0.00046849,120]
[356541180,1742637049399,-500.0,0.00046849,120]
[356541181,1742637049409,-624.39,0.00046849,120]
[356541182,1742637049419,-500.0,0.00046849,120]
[356541183,1742637049428,-500.0,0.00046849,120]
[356541184,1742637049438,-500.0,0.00046849,120]
[356541185,1742637049447,-1923.34,0.00046849,120]
[356541186,1742637049457,-500.0,0.00046849,120]
[356541187,1742637049466,-500.0,0.00046849,120]
[356541188,1742637049476,-820.19,0.00046849,120]
[356541189,1742637049485,-564.23,0.00046849,120]
[356541190,1742637049494,-665.21,0.00046849,120]
[356541191,1742637049504,-500.0,0.00046849,120]
[356541192,1742637049513,-500.0,0.00046849,120]
[356541193,1742637049523,-1241.85,0.00046849,120]
[356541194,1742637049532,-500.0,0.00046849,120]
[356541195,1742637049541,-500.0,0.00046849,120]
[356541196,1742637049550,-619.76,0.00046849,120]
[356541197,1742637049560,-500.0,0.00046849,120]
[356541198,1742637049570,-500.0,0.00046849,120]
[356541199,1742637049579,-591.13,0.00046849,120]
[356541200,1742637049589,-500.0,0.00046849,60]
[356541201,1742637049599,-500.0,0.00046849,120]
[356541202,1742637049608,-500.0,0.00046849,120]
[356541203,1742637049618,-500.0,0.00046849,120]
[356541204,1742637049627,-500.0,0.00046849,120]
[356541205,1742637049637,-611.96,0.00046849,120]
[356541206,1742637049647,-500.0,0.00046849,120]
[356541207,1742637049656,-645.8,0.00046849,120]
[356541208,1742637049666,-529.2,0.00046849,120]
[356541209,1742637049675,-500.0,0.00046849,120]
[356541210,1742637049685,-601.81,0.00046849,120]
[356541211,1742637049695,-641.64,0.00046849,120]
[356541212,1742637049704,-640.55,0.00046849,120]
[356541213,1742637049714,-500.0,0.00046849,120]
[356541214,1742637049723,-500.0,0.00046849,120]
[356541215,1742637049732,-500.0,0.00046849,120]
[356541216,1742637049742,-627.71,0.00046849,120]
[356541217,1742637049752,-701.19,0.00046849,120]
[356541218,1742637049762,-1353.99,0.00046849,120]
[356541219,1742637049771,-500.0,0.00046849,120]
[356541220,1742637049780,-500.0,0.00046849,120]
[356541221,1742637049789,-500.0,0.00046849,120]
[356541222,1742637049798,-500.0,0.00046849,120]
[356541223,1742637049808,-658.79,0.00046849,120]
[356541224,1742637049817,-500.0,0.00046849,120]
[356541225,1742637049826,-1518.81,0.00046849,120]
[356541226,1742637049835,-500.0,0.00046849,120]
[356541227,1742637049844,-1579.16,0.00046849,120]
[356541228,1742637049853,-500.0,0.00046849,120]
[356541229,1742637049862,-500.0,0.00046849,120]
[356541230,1742637049871,-842.72,0.00046849,120]
[356541231,1742637049880,-500.0,0.00046849,120]
[356541232,1742637049890,-500.0,0.00046849,120]
[356541233,1742637049900,-500.0,0.00046849,120]
[356541234,1742637049909,-1920.4,0.00046849,120]
[356541235,1742637049919,-500.0,0.00046849,120]
[356541236,1742637049928,-500.0,0.00046849,120]
[356541237,1742637049938,-500.0,0.00046849,120]
[356541238,1742637049947,-500.0,0.00046849,120]
[356541239,1742637049957,-500.0,0.00046849,120]
[356541240,1742637049966,-5245.81,0.00046849,120]
[356541241,1742637049975,-500.0,0.00046849,120]
[356541242,1742637049985,-500.0,0.00046849,120]
[356541243,1742637049994,-2131.02,0.00046849,120]
[356541244,1742637050004,-526.49591296,0.00046849,120]
[356541245,1742637050013,-500.0,0.00046849,120]
[356541246,1742637050023,-983.72,0.00046849,120]
[356541247,1742637050033,-244.45407168,0.00046849,120]
[356541248,1742637050042,-500.0,0.00046849,120]
[356541249,1742637050051,-500.0,0.00046849,120]
[356541250,1742637050061,-500.0,0.00046849,120]
[356541251,1742637050070,-1445.99,0.00046849,120]
[356541252,1742637050080,-585.87,0.00046849,120]
[356541253,1742637050089,-500.0,0.00046849,30]
[356541254,1742637050098,-689.75,0.00046849,120]
[356541255,1742637050107,-500.0,0.00046849,120]
[356541256,1742637050116,-500.0,0.00046849,120]
[356541257,1742637050126,-846.6,0.00046849,120]
[356541258,1742637050135,-587.36,0.00046849,120]
[356541259,1742637050145,-635.78,0.00046849,120]
[356541260,1742637050155,-1413.44,0.00046849,120]
[356541261,1742637050165,-429.03645079,0.00046849,120]
[356541262,1742637050174,-4235.9,0.00046849,2]
[356541263,1742637050183,-500.0,0.00046849,120]
[356541264,1742637050192,-500.0,0.00046849,120]
[356541265,1742637050201,-500.0,0.00046849,120]
[356541266,1742637050210,-1454.51,0.00046849,120]
[356541267,1742637050220,-500.0,0.00046849,120]
[356541268,1742637050229,-500.0,0.00046849,120]
[356541269,1742637050238,-500.0,0.00046849,120]
[356541270,1742637050247,-970.54,0.00046849,120]
[356541271,1742637050256,-586.12,0.00046849,120]
[356541272,1742637050265,-500.0,0.00046849,120]
[356541273,1742637050274,-635.48,0.00046849,120]
[356541274,1742637050283,-996.39,0.00046849,120]
[356541275,1742637050295,-647.73,0.00046849,120]
[356541276,1742637050304,-1824.31,0.00046849,120]
[356541277,1742637050313,-500.0,0.00046849,120]
[356541278,1742637050323,-833.59,0.00046849,120]
[356541279,1742637050331,-500.0,0.00046849,120]
[356541280,1742637050341,-500.0,0.00046849,120]
[356541281,1742637050350,-809.31,0.00046849,120]
[356541282,1742637050360,-2000.27,0.00046849,120]
[356541283,1742637050369,-1128.13,0.00046849,120]
[356541284,1742637050379,-205.85,0.00046849,7]
[356541285,1742637050389,-500.0,0.00046849,120]
[356541286,1742637050398,-2750.71,0.00046849,120]
[356541287,1742637050408,-500.0,0.00046849,120]
[356541288,1742637050417,-500.0,0.00046849,120]
[356541289,1742637050426,-500.0,0.00046849,120]
[356541290,1742637050435,-972.4,0.00046849,120]
[356541291,1742637050445,-912.87,0.00046849,120]
[356541292,1742637050454,-500.0,0.00046849,120]
[356541293,1742637050464,-3375.17,0.00046849,120]
[356541294,1742637050473,-558.47,0.00046849,120]
[356541295,1742637050483,-743.38,0.00046849,120]
[356541296,1742637050492,-1367.27,0.00046849,120]
[356541297,1742637050501,-520.84,0.00046849,120]
[356541298,1742637050511,-500.0,0.00046849,120]
[356541299,1742637050520,-1219.57,0.00046849,120]
[356541300,1742637050529,-500.0,0.00046849,120]
[356541301,1742637050539,-2818.72,0.00046849,120]
[356541302,1742637050548,-500.0,0.00046849,120]
[356541303,1742637050557,-825.87,0.00046849,120]
[356541304,1742637050566,-500.0,0.00046849,120]
[356541305,1742637050575,-635.13,0.00046849,120]
[356541306,1742637050585,-606.96,0.00046849,120]
[356541307,1742637050595,-827.5,0.00046849,120]
[356541308,1742637050604,-695.68,0.00046849,120]
[356541309,1742637050613,-666.85,0.00046849,120]
[356541310,1742637050623,-500.0,0.00046849,120]
[356541311,1742637050633,-500.0,0.00046849,120]
[356541312,1742637050642,-1356.69,0.00046849,7]
[356541313,1742637050651,-1736.83,0.00046849,120]
[356541314,1742637050660,-913.27,0.00046849,120]
[356541315,1742637050669,-527.15,0.00046849,120]
[356541316,1742637050679,-599.99,0.00046849,120]
[356541317,1742637050688,-500.0,0.00046849,120]
[356541318,1742637050697,-500.0,0.00046849,120]
[356541319,1742637050707,-500.0,0.00046849,120]
[356541320,1742637050716,-597.23,0.00046849,120]
[356541321,1742637050725,-501.82,0.00046849,120]
[356541322,1742637050734,-1106.0,0.00046849,120]
[356541323,1742637050744,-341.04685165,0.00046849,120]
[356541324,1742637050753,-882.82,0.00046849,120]
[356541325,1742637050762,-500.0,0.00046849,120]
[356541326,1742637050771,-1127.56,0.00046849,120]
[356541327,1742637050780,-1089.93,0.00046849,7]
[356541328,1742637050790,-500.0,0.00046849,120]
[356541329,1742637050799,-502.2,0.00046849,120]
[356541330,1742637050809,-500.0,0.00046849,120]
[356541331,1742637050818,-1068.57,0.00046849,120]
[356541332,1742637050827,-1131.58,0.00046849,120]
[356541333,1742637050836,-529.97,0.00046849,120]
[356541334,1742637050897,-500.0,0.00046849,120]
[356541335,1742637050907,-559.18,0.00046849,120]
[356541336,1742637050916,-500.0,0.00046849,120]
[356541337,1742637050925,-1578.59,0.00046849,120]
[356541338,1742637050934,-500.0,0.00046849,120]
[356541339,1742637050943,-5060.41,0.00046849,120]
[356541340,1742637050951,-500.0,0.00046849,120]
[356541341,1742637050961,-500.0,0.00046849,120]
[356541342,1742637050970,-938.19,0.00046849,120]
[356541343,1742637050979,-567.38,0.00046849,120]
[356541344,1742637050988,-617.69,0.00046849,120]
[356541345,1742637050997,-1439.24,0.00046849,120]
[356541346,1742637051007,-1288.21,0.00046849,120]
[356541347,1742637051016,-500.0,0.00046849,120]
[356541348,1742637051025,-3623.73,0.00046849,120]
[356541349,1742637051034,-1583.29,0.00046849,120]
[356541350,1742637051043,-1914.19,0.00046849,120]
[356541351,1742637051052,-500.0,0.00046849,120]
[356541352,1742637051061,-1724.46,0.00046849,120]
[356541353,1742637051070,-2003.91,0.00046849,100]
[356541354,1742637051079,-1585.84,0.00046849,120]
[356541355,1742637051088,-500.0,0.00046849,120]
[356541356,1742637051096,-2253.09,0.00046849,120]
[356541357,1742637051105,-500.0,0.00046849,120]
[356541358,1742637051114,-500.0,0.00046849,120]
[356541359,1742637051122,-500.0,0.00046849,120]
[356541360,1742637051131,-645.37,0.00046849,120]
[356541361,1742637051140,-953.32788134,0.00046849,120]
[356541362,1742637051149,-691.36,0.00046849,120]
[356541363,1742637051159,-817.6,0.00046849,120]
[356541364,1742637051168,-523.41,0.00046849,120]
[356541365,1742637051177,-1609.26,0.00046849,120]
[356541366,1742637051186,-1181.24,0.00046849,120]
[356541367,1742637051195,-1857.45,0.00046849,120]
[356541368,1742637051204,-592.73,0.00046849,120]
[356541369,1742637051214,-1111.56,0.00046849,120]
[356541370,1742637051223,-500.0,0.00046849,120]
[356541371,1742637051232,-500.0,0.00046849,120]
[356541372,1742637051241,-1095.08,0.00046849,120]
[356541373,1742637051250,-1041.52,0.00046849,120]
[356541374,1742637051259,-500.0,0.00046849,120]
[356541375,1742637051269,-500.0,0.00046849,120]
[356541376,1742637051278,-624.9,0.00046849,120]
[356541377,1742637051287,-1000.0,0.00046849,28]
[356541378,1742637051301,-500.0,0.00046849,120]
[356541379,1742637051310,-796.13,0.00046849,120]
[356541380,1742637051319,-500.0,0.00046849,120]
[356541381,1742637051328,-751.81,0.00046849,120]
[356541382,1742637051338,-722.59,0.00046849,120]
[356541383,1742637051347,-500.0,0.00046849,120]
[356541384,1742637051356,-554.28,0.00046849,120]
[356541385,1742637051366,-555.78,0.00046849,120]
[356541386,1742637051375,-500.0,0.00046849,120]
[356541387,1742637051388,-3273.79,0.00046849,120]
[356541388,1742637051397,-2930.96,0.00046849,120]
[356541389,1742637051407,-1052.7,0.00046849,120]
[356541390,1742637051416,-504.22,0.00046849,120]
[356541391,1742637051425,-500.0,0.00046849,120]
[356541392,1742637051435,-646.0829973,0.00046849,120]
[356541393,1742637051444,-1485.55,0.00046849,120]
[356541394,1742637051453,-500.0,0.00046849,120]
[356541395,1742637051462,-504.42,0.00046849,120]
[356541396,1742637051471,-657.13,0.00046849,120]
[356541397,1742637051480,-1080.77,0.00046849,120]
[356541398,1742637051489,-500.0,0.00046849,120]
[356541399,1742637051498,-500.0,0.00046849,120]
[356541400,1742637051507,-517.31,0.00046849,120]
[356541401,1742637051516,-760.27,0.00046849,120]
[356541402,1742637051526,-899.53,0.00046849,120]
[356541403,1742637051535,-500.0,0.00046849,120]
[356541404,1742637051544,-500.0,0.00046849,120]
[356541405,1742637051553,-692.39,0.00046849,120]
[356541406,1742637051562,-500.0,0.00046849,120]
[356541407,1742637051571,-500.0,0.00046849,120]
[356541408,1742637051581,-500.0,0.00046849,120]
[356541409,1742637051590,-555.67,0.00046849,120]
[356541410,1742637051598,-1026.62,0.00046849,120]
[356541411,1742637051607,-500.0,0.00046849,120]
[356541412,1742637051616,-500.0,0.00046849,120]
[356541413,1742637051625,-1504.12,0.00046849,120]
[356541414,1742637051635,-655.7,0.00046849,120]
[356541415,1742637051645,-500.0,0.00046849,120]
[356541416,1742637051654,-500.0,0.00046849,120]
[356541417,1742637051663,-668.14,0.00046849,120]
[356541418,1742637051672,-500.0,0.00046849,20]
[356541419,1742637051682,-529.96,0.00046849,120]
[356541420,1742637051691,-500.0,0.00046849,120]
[356541421,1742637051700,-500.0,0.00046849,120]
[356541422,1742637051709,-56672.48,0.00046849,120]
[356541423,1742637051718,-1785.62,0.00046849,120]
[356541424,1742637051727,-500.0,0.00046849,120]
[356541425,1742637051735,-874.3,0.00046849,120]
[356541426,1742637051744,-500.0,0.00046849,120]
[356541427,1742637051753,-892.9,0.00046849,120]
[356541428,1742637051762,-507.98,0.00046849,120]
[356541429,1742637051771,-767.43,0.00046849,120]
[356541430,1742637051780,-818.49,0.00046849,120]
[356541431,1742637051789,-574.58,0.00046849,120]
[356541432,1742637051798,-622.98,0.00046849,120]
[356541433,1742637051807,-500.0,0.00046849,120]
[356541434,1742637051817,-500.0,0.00046849,120]
[356541435,1742637051826,-1187.99,0.00046849,120]
[356541436,1742637051836,-500.0,0.00046849,120]
[356541437,1742637051845,-594.34,0.00046849,120]
[356541438,1742637051854,-500.0,0.00046849,120]
[356541439,1742637051863,-724.76,0.00046849,120]
[356541440,1742637051873,-500.0,0.00046849,120]
[356541441,1742637051883,-554.79,0.00046849,120]
[356541442,1742637051893,-500.0,0.00046849,120]
[356541443,1742637051902,-864.88,0.00046849,120]
[356541444,1742637051911,-664.62,0.00046849,120]
[356541445,1742637051920,-870.55,0.00046849,120]
[356541446,1742637051931,-500.0,0.00046849,120]
[356541447,1742637051944,-3152.52,0.00046849,120]
[356541448,1742637051957,-500.0,0.00046849,120]
[356541449,1742637051967,-1001.37,0.00046849,120]
[356541450,1742637051975,-500.0,0.00046849,120]
[356541451,1742637051983,-156.72955192,0.00046897,120]
[356541452,1742637051993,-267.51,0.000469,32]
[356541453,1742637052002,-798.79,0.00046904,30]
[356541454,1742637052011,-205.178253,0.00046986,120]
[356541455,1742637052020,-150.0,0.00046986,30]
[356541456,1742637052029,-2679.32801899,0.00047,120]
[356541457,1742637052038,-156.72955192,0.00047055,120]
[356541458,1742637052047,-57084.90040432,0.00047083,15]
[356541459,1742637052056,-200.96351691,0.000471,10]
[356541460,1742637052065,-150.0,0.00047101,7]
[356541461,1742637052074,-150.0,0.00047112,7]
[356541462,1742637052083,-208.0,0.0004712,30]
[356541463,1742637052093,-150.0,0.00047122,120]
[356541464,1742637052102,-500.0,0.00047122,120]
[356541465,1742637052111,-500.0,0.00047122,120]
[356541466,1742637052120,-500.0,0.00047122,120]
[356541467,1742637052130,-500.0,0.00047122,120]
[356541468,1742637052139,-500.0,0.00047122,120]
[356541469,1742637052149,-500.0,0.00047122,120]
[356541470,1742637052157,-500.0,0.00047122,120]
[356541471,1742637052167,-500.0,0.00047122,120]
[356541472,1742637052176,-500.0,0.00047122,120]
[356541473,1742637052185,-666.0,0.00047122,120]
[356541474,1742637052195,-644.01,0.00047122,120]
[356541475,1742637052204,-644.01,0.00047122,120]
[356541476,1742637052213,-904.785999,0.00047123,120]
[356541477,1742637052222,-733.844647,0.00047123,120]
[356541478,1742637052232,-500.0,0.00047123,120]
[356541479,1742637052241,-500.0,0.00047123,120]
[356541480,1742637052250,-500.0,0.00047123,120]
[356541481,1742637052259,-739.16,0.00047123,120]
[356541482,1742637052269,-500.0,0.00047123,120]
[356541483,1742637052278,-500.0,0.00047123,120]
[356541484,1742637052288,-500.0,0.00047123,120]
[356541485,1742637052302,-500.0,0.00047123,120]
[356541486,1742637052311,-500.0,0.00047123,120]
[356541487,1742637052320,-950.82,0.00047123,120]
[356541488,1742637052330,-500.0,0.00047123,120]
[356541489,1742637052339,-517.63,0.00047123,120]
[356541490,1742637052348,-500.0,0.00047123,120]
[356541491,1742637052357,-500.0,0.00047123,120]
[356541492,1742637052367,-500.0,0.00047123,120]
[356541493,1742637052377,-500.0,0.00047123,120]
[356541494,1742637052387,-1049.72,0.00047123,120]
[356541495,1742637052396,-653.69,0.00047123,120]
[356541496,1742637052406,-907.89,0.00047123,120]
[356541497,1742637052415,-388.12757864,0.00047123,120]
[356541498,1742637052424,-600.62,0.00047123,120]
[356541499,1742637052433,-500.0,0.00047123,120]
[356541500,1742637052442,-500.0,0.00047123,120]
[356541501,1742637052452,-500.0,0.00047123,120]
[356541502,1742637052462,-500.0,0.00047123,120]
[356541503,1742637052471,-500.0,0.00047123,120]
[356541504,1742637052480,-500.0,0.00047123,120]
[356541505,1742637052490,-500.0,0.00047123,120]
[356541506,1742637052499,-500.0,0.00047123,120]
[356541507,1742637052508,-500.0,0.00047123,120]
[356541508,1742637052517,-500.0,0.00047123,120]
[356541509,1742637052526,-500.0,0.00047123,120]
[356541510,1742637052535,-500.0,0.00047123,120]
[356541511,1742637052544,-500.0,0.00047123,120]
[356541512,1742637052554,-500.0,0.00047123,120]
[356541513,1742637052563,-500.0,0.00047123,120]
[356541514,1742637052573,-500.0,0.00047123,120]
[356541515,1742637052583,-501.22,0.00047123,120]
[356541516,1742637052592,-500.0,0.00047123,120]
[356541517,1742637052601,-500.0,0.00047123,120]
[356541518,1742637052610,-500.0,0.00047123,120]
[356541519,1742637052619,-761.07,0.00047123,120]
[356541520,1742637052628,-956.79,0.00047123,120]
[356541521,1742637052637,-500.0,0.00047123,120]
[356541522,1742637052647,-500.0,0.00047123,120]
[356541523,1742637052656,-500.0,0.00047123,120]
[356541524,1742637052666,-963.36,0.00047123,60]
[356541525,1742637052675,-782.21,0.00047123,120]
[356541526,1742637052685,-500.0,0.00047123,120]
[356541527,1742637052694,-584.06,0.00047123,120]
[356541528,1742637052703,-500.0,0.00047123,120]
[356541529,1742637052712,-500.0,0.00047123,2]
[356541530,1742637052721,-673.59,0.00047123,120]
[356541531,1742637052731,-502.51,0.00047123,120]
[356541532,1742637052740,-500.0,0.00047123,120]
[356541533,1742637052749,-521.7219589,0.00047123,120]
[356541534,1742637052758,-500.0,0.00047123,120]
[356541535,1742637052767,-500.0,0.00047123,120]
[356541536,1742637052777,-1473.31,0.00047123,120]
[356541537,1742637052786,-500.0,0.00047123,120]
[356541538,1742637052795,-500.0,0.00047123,120]
[356541539,1742637052804,-500.0,0.00047123,120]
[356541540,1742637052813,-500.0,0.00047123,120]
[356541541,1742637052823,-751.46,0.00047123,120]
[356541542,1742637052831,-1642.39,0.00047123,120]
[356541543,1742637052841,-654.04,0.00047123,120]
[356541544,1742637052850,-674.52,0.00047123,120]
[356541545,1742637052860,-520.54,0.00047123,120]
[356541546,1742637052869,-500.0,0.00047123,120]
[356541547,1742637052878,-500.0,0.00047123,120]
[356541548,1742637052887,-500.0,0.00047123,30]
[356541549,1742637052896,-500.0,0.00047123,120]
[356541550,1742637052906,-781.34,0.00047123,120]
[356541551,1742637052915,-500.0,0.00047123,120]
[356541552,1742637052924,-532.16,0.00047123,120]
[356541553,1742637052934,-500.0,0.00047123,120]
[356541554,1742637052943,-500.0,0.00047123,120]
[356541555,1742637052952,-601.78,0.00047123,120]
[356541556,1742637052962,-500.0,0.00047123,120]
[356541557,1742637052971,-691.76,0.00047123,120]
[356541558,1742637052980,-500.0,0.00047123,120]
[356541559,1742637052990,-802.29,0.00047123,120]
[356541560,1742637053000,-500.0,0.00047123,120]
[356541561,1742637053010,-500.0,0.00047123,120]
[356541562,1742637053019,-500.0,0.00047123,120]
[356541563,1742637053028,-580.53,0.00047123,120]
[356541564,1742637053037,-500.0,0.00047123,120]
[356541566,1742637053047,-2210.41,0.00047123,120]
[356541567,1742637053056,-500.0,0.00047123,120]
[356541568,1742637053065,-500.0,0.00047123,120]
[356541569,1742637053075,-904.56,0.00047123,120]
[356541570,1742637053084,-500.0,0.00047123,120]
[356541571,1742637053093,-500.0,0.00047123,120]
[356541572,1742637053102,-793.91,0.00047123,120]
[356541573,1742637053111,-706.55,0.00047123,120]
[356541574,1742637053120,-834.3,0.00047123,120]
[356541575,1742637053130,-500.0,0.00047123,120]
[356541576,1742637053139,-671.78,0.00047123,120]
[356541577,1742637053148,-500.0,0.00047123,120]
[356541578,1742637053158,-500.0,0.00047123,120]
[356541579,1742637053166,-500.0,0.00047123,120]
[356541580,1742637053176,-500.0,0.00047123,120]
[356541581,1742637053185,-500.0,0.00047123,120]
[356541582,1742637053194,-1807.75,0.00047123,120]
[356541583,1742637053203,-500.0,0.00047123,120]
[356541584,1742637053212,-500.0,0.00047123,120]
[356541585,1742637053222,-842.88,0.00047123,120]
[356541586,1742637053231,-500.0,0.00047123,120]
[356541587,1742637053240,-175.06440999,0.00047123,120]
[356541588,1742637053250,-500.0,0.00047123,120]
[356541589,1742637053259,-500.0,0.00047123,120]
[356541590,1742637053268,-350.0,0.00047123,120]
[356541591,1742637053277,-965.16,0.00047123,120]
[356541592,1742637053287,-591.6,0.00047123,120]
[356541593,1742637053301,-1371.05,0.00047123,120]
[356541594,1742637053310,-1325.26,0.00047123,120]
[356541595,1742637053320,-558.56,0.00047123,120]
[356541596,1742637053329,-874.61,0.00047123,120]
[356541597,1742637053340,-902.88,0.00047123,120]
[356541598,1742637053349,-509.55,0.00047123,120]
[356541599,1742637053358,-500.0,0.00047123,120]
[356541600,1742637053369,-500.0,0.00047123,120]
[356541601,1742637053378,-500.0,0.00047123,120]
[356541602,1742637053387,-937.33,0.00047123,120]
[356541603,1742637053396,-500.0,0.00047123,120]
[356541604,1742637053406,-500.0,0.00047123,120]
[356541605,1742637053415,-500.0,0.00047123,120]
[356541606,1742637053424,-1062.3,0.00047123,120]
[356541607,1742637053434,-600.78,0.00047123,120]
[356541608,1742637053443,-664.64,0.00047123,120]
[356541609,1742637053453,-668.71,0.00047123,120]
[356541610,1742637053462,-564.64,0.00047123,120]
[356541611,1742637053471,-1070.64,0.00047123,120]
[356541612,1742637053480,-979.48,0.00047123,120]
[356541613,1742637053490,-800.83,0.00047123,120]
[356541614,1742637053499,-500.0,0.00047123,120]
[356541615,1742637053508,-698.39,0.00047123,120]
[356541616,1742637053518,-500.0,0.00047123,120]
[356541617,1742637053528,-500.0,0.00047123,120]
[356541618,1742637053537,-680.79,0.00047123,120]
[356541619,1742637053547,-514.68,0.00047123,120]
[356541620,1742637053556,-536.4,0.00047123,120]
[356541621,1742637053565,-500.0,0.00047123,120]
[356541622,1742637053574,-500.0,0.00047123,120]
[356541623,1742637053584,-500.0,0.00047123,120]
[356541624,1742637053594,-500.0,0.00047123,120]
[356541625,1742637053603,-500.0,0.00047123,120]
[356541626,1742637053612,-661.88,0.00047123,120]
[356541627,1742637053622,-500.0,0.00047123,120]
[356541628,1742637053631,-500.0,0.00047123,120]
[356541629,1742637053640,-500.0,0.00047123,120]
[356541630,1742637053649,-500.0,0.00047123,120]
[356541631,1742637053659,-730.9,0.00047123,120]
[356541632,1742637053667,-1058.49,0.00047123,120]
[356541633,1742637053677,-500.0,0.00047123,120]
[356541634,1742637053686,-1233.22,0.00047123,120]
[356541635,1742637053695,-1327.63,0.00047123,120]
[356541636,1742637053704,-520.32,0.00047123,120]
[356541637,1742637053714,-500.0,0.00047123,120]
[356541638,1742637053724,-896.4,0.00047123,120]
[356541639,1742637053733,-1347.94,0.00047123,120]
[356541640,1742637053742,-597.81,0.00047123,120]
[356541641,1742637053751,-500.0,0.00047123,120]
[356541642,1742637053760,-788.73,0.00047123,120]
[356541643,1742637053770,-500.0,0.00047123,120]
[356541644,1742637053779,-500.0,0.00047123,120]
[356541645,1742637053788,-2023.49,0.00047123,120]
[356541646,1742637053797,-625.69,0.00047123,120]
[356541647,1742637053807,-500.0,0.00047123,120]
[356541648,1742637053816,-1415.42,0.00047123,120]
[356541649,1742637053825,-556.5,0.00047123,120]
[356541650,1742637053835,-461.69267461,0.00047123,120]
[356541651,1742637053844,-839.81,0.00047123,120]
[356541652,1742637053853,-500.0,0.00047123,120]
[356541653,1742637053863,-1500.0,0.00047123,120]
[356541654,1742637053873,-813.54,0.00047123,120]
[356541655,1742637053882,-570.18,0.00047123,120]
[356541656,1742637053892,-500.0,0.00047123,120]
[356541657,1742637053901,-500.0,0.00047123,120]
[356541658,1742637053910,-500.0,0.00047123,120]
[356541659,1742637053919,-500.0,0.00047123,120]
[356541660,1742637053928,-621.41,0.00047123,120]
[356541661,1742637053937,-300.0,0.00047123,120]
[356541662,1742637053947,-301.97271356,0.00047123,120]
[356541663,1742637053956,-713.81,0.00047123,120]
[356541664,1742637053965,-500.0,0.00047123,120]
[356541665,1742637053974,-500.0,0.00047123,120]
[356541666,1742637053983,-1159.44,0.00047123,10]